[Event "Early-Titled-Tuesday-Blitz-April-23-2024"]
[Site "Chess.com"]
[Date "2024.04.23"]
[Round "10"]
[White "azikom"]
[Black "whiteglovethief"]
[Result "1/2-1/2"]
[WhiteElo "2698"]
[BlackElo "2581"]
[TimeControl "180+1"]
[EndTime "10:00:35 PDT"]
[Termination "Game drawn by repetition"]

1. d4 {[%clk 0:03:00.9]} 1... Nf6 {[%clk 0:02:54.2]} 2. c4 {[%clk 0:03:00.3]}
2... c5 {[%clk 0:02:54.7]} 3. d5 {[%clk 0:02:59.7]} 3... b5 {[%clk 0:02:54.6]}
4. f3 {[%clk 0:02:55.3]} 4... d6 {[%clk 0:02:44.6]} 5. e4 {[%clk 0:02:54.7]}
5... g6 {[%clk 0:02:41.9]} 6. cxb5 {[%clk 0:02:53]} 6... Bg7 {[%clk 0:02:42.5]}
7. Ne2 {[%clk 0:02:52.3]} 7... O-O {[%clk 0:02:43.4]} 8. Nec3 {[%clk 0:02:51.8]}
8... e6 {[%clk 0:02:42.6]} 9. Be2 {[%clk 0:02:47.8]} 9... exd5 {[%clk
0:02:42.1]} 10. Nxd5 {[%clk 0:02:47.6]} 10... a6 {[%clk 0:02:36.9]} 11. Nbc3
{[%clk 0:02:35.2]} 11... axb5 {[%clk 0:02:35.4]} 12. Nxb5 {[%clk 0:02:29.3]}
12... Bb7 {[%clk 0:02:34.8]} 13. Ndc3 {[%clk 0:02:23.5]} 13... d5 {[%clk
0:02:28.4]} 14. exd5 {[%clk 0:02:23.3]} 14... Nxd5 {[%clk 0:02:27.7]} 15. O-O
{[%clk 0:02:22.9]} 15... Nxc3 {[%clk 0:02:24.4]} 16. Nxc3 {[%clk 0:02:20.8]}
16... Nc6 {[%clk 0:02:23.9]} 17. Qxd8 {[%clk 0:02:19.1]} 17... Rfxd8 {[%clk
0:02:21.5]} 18. Bg5 {[%clk 0:02:19.3]} 18... Re8 {[%clk 0:02:17.4]} 19. Bb5
{[%clk 0:02:18.3]} 19... Re5 {[%clk 0:02:04.1]} 20. Bf4 {[%clk 0:02:13]} 20...
Rf5 {[%clk 0:02:04.3]} 21. Bg3 {[%clk 0:02:10.6]} 21... Nd4 {[%clk 0:02:02]} 22.
Bc4 {[%clk 0:02:04]} 22... Nc2 {[%clk 0:01:56.4]} 23. Bd3 {[%clk 0:01:33.8]}
23... Nxa1 {[%clk 0:01:55.5]} 24. Bxf5 {[%clk 0:01:33.5]} 24... gxf5 {[%clk
0:01:53]} 25. Rxa1 {[%clk 0:01:32.4]} 25... Bc8 {[%clk 0:01:46.3]} 26. Bf2
{[%clk 0:01:29.8]} 26... Rb8 {[%clk 0:01:36.4]} 27. Rd1 {[%clk 0:01:08.8]} 27...
Be6 {[%clk 0:01:30]} 28. Bxc5 {[%clk 0:01:05.1]} 28... Bf6 {[%clk 0:01:24.3]}
29. Bd4 {[%clk 0:00:49.6]} 29... Bxd4+ {[%clk 0:01:21.9]} 30. Rxd4 {[%clk
0:00:50.5]} 30... Rxb2 {[%clk 0:01:21.7]} 31. a4 {[%clk 0:00:50.8]} 31... Rc2
{[%clk 0:01:19.5]} 32. Nd5 {[%clk 0:00:46.6]} 32... Ra2 {[%clk 0:01:14.1]} 33.
Nf4 {[%clk 0:00:45.1]} 33... Bb3 {[%clk 0:01:09.4]} 34. Rb4 {[%clk 0:00:40.5]}
34... Bxa4 {[%clk 0:01:07.7]} 35. Nh5 {[%clk 0:00:40.5]} 35... Kf8 {[%clk
0:01:07.3]} 36. Rb8+ {[%clk 0:00:36.1]} 36... Ke7 {[%clk 0:01:07.5]} 37. Rb7+
{[%clk 0:00:36.5]} 37... Bd7 {[%clk 0:00:55.7]} 38. h3 {[%clk 0:00:28.7]} 38...
Ra4 {[%clk 0:00:48.5]} 39. Kh2 {[%clk 0:00:27.8]} 39... f4 {[%clk 0:00:47.4]}
40. Nf6 {[%clk 0:00:18.9]} 40... Kxf6 {[%clk 0:00:47.2]} 41. Rxd7 {[%clk
0:00:19.5]} 41... Kg6 {[%clk 0:00:46.7]} 42. Rd5 {[%clk 0:00:19]} 42... h5
{[%clk 0:00:45.6]} 43. h4 {[%clk 0:00:18.7]} 43... f6 {[%clk 0:00:40.6]} 44. Rc5
{[%clk 0:00:18.3]} 44... Rb4 {[%clk 0:00:40.4]} 45. Ra5 {[%clk 0:00:18]} 45...
Rc4 {[%clk 0:00:40.4]} 46. Rb5 {[%clk 0:00:18.1]} 46... Ra4 {[%clk 0:00:40.4]}
47. Rc5 {[%clk 0:00:18.1]} 47... Rb4 {[%clk 0:00:40.4]} 48. Ra5 {[%clk
0:00:18.4]} 48... Rc4 {[%clk 0:00:40.5]} 49. Rb5 {[%clk 0:00:18.5]} 49... Ra4
{[%clk 0:00:40.5]} 50. Rc5 {[%clk 0:00:18.5]} 1/2-1/2

[Event "Early-Titled-Tuesday-Blitz-April-23-2024"]
[Site "Chess.com"]
[Date "2024.04.23"]
[Round "10"]
[White "zurzan"]
[Black "patzer-reloaded"]
[Result "1-0"]
[WhiteElo "2152"]
[BlackElo "2415"]
[TimeControl "180+1"]
[EndTime "10:00:41 PDT"]
[Termination "zurzan won by checkmate"]

1. c4 {[%clk 0:03:00.9]} 1... c5 {[%clk 0:02:58.8]} 2. g3 {[%clk 0:03:01.8]}
2... Nc6 {[%clk 0:02:57.2]} 3. Bg2 {[%clk 0:03:02.7]} 3... g6 {[%clk 0:02:55.9]}
4. Nf3 {[%clk 0:03:03.6]} 4... Bg7 {[%clk 0:02:56.1]} 5. Nc3 {[%clk 0:03:03.9]}
5... d6 {[%clk 0:02:54.9]} 6. O-O {[%clk 0:03:04.8]} 6... e5 {[%clk 0:02:54.2]}
7. d3 {[%clk 0:03:04.6]} 7... Nge7 {[%clk 0:02:53.8]} 8. h3 {[%clk 0:03:04.9]}
8... O-O {[%clk 0:02:53.6]} 9. e4 {[%clk 0:03:05.2]} 9... Rb8 {[%clk 0:02:26.8]}
10. Rb1 {[%clk 0:03:04.3]} 10... a6 {[%clk 0:02:25.8]} 11. a3 {[%clk 0:03:04.5]}
11... b5 {[%clk 0:02:25.3]} 12. cxb5 {[%clk 0:03:04.2]} 12... axb5 {[%clk
0:02:25]} 13. b4 {[%clk 0:03:04.7]} 13... cxb4 {[%clk 0:02:14.2]} 14. axb4
{[%clk 0:03:05.6]} 14... d5 {[%clk 0:01:53]} 15. Nxd5 {[%clk 0:02:53.2]} 15...
Nxd5 {[%clk 0:01:52.6]} 16. exd5 {[%clk 0:02:54.1]} 16... Qxd5 {[%clk
0:01:52.6]} 17. Re1 {[%clk 0:02:21.4]} 17... Qd6 {[%clk 0:01:50.7]} 18. Ng5
{[%clk 0:01:27.7]} 18... Nd4 {[%clk 0:01:40.6]} 19. Ne4 {[%clk 0:01:17.5]} 19...
Qb6 {[%clk 0:01:00.2]} 20. Be3 {[%clk 0:01:16.1]} 20... Rd8 {[%clk 0:00:58.8]}
21. Rc1 {[%clk 0:01:01.8]} 21... Bb7 {[%clk 0:00:58]} 22. Rc5 {[%clk 0:00:55.2]}
22... Ra8 {[%clk 0:00:16]} 23. h4 {[%clk 0:00:39.4]} 23... Bf8 {[%clk
0:00:13.5]} 24. Rxe5 {[%clk 0:00:36.8]} 24... Bxb4 {[%clk 0:00:13.5]} 25. Rf1
{[%clk 0:00:24.2]} 25... Qc7 {[%clk 0:00:06.9]} 26. Nf6+ {[%clk 0:00:22.7]}
26... Kg7 {[%clk 0:00:06.5]} 27. Ne8+ {[%clk 0:00:09.9]} 27... Rxe8 {[%clk
0:00:06]} 28. Rxe8 {[%clk 0:00:10.1]} 28... Bxg2 {[%clk 0:00:06.7]} 29. Bxd4+
{[%clk 0:00:10.1]} 29... f6 {[%clk 0:00:04.1]} 30. Rxa8 {[%clk 0:00:09.8]} 30...
Bxa8 {[%clk 0:00:02.3]} 31. Qb3 {[%clk 0:00:07.2]} 31... Qb7 {[%clk 0:00:03]}
32. f3 {[%clk 0:00:06.7]} 32... Bf8 {[%clk 0:00:02.9]} 33. Qe6 {[%clk
0:00:05.1]} 33... b4 {[%clk 0:00:03.8]} 34. Qxf6+ {[%clk 0:00:04]} 34... Kh6
{[%clk 0:00:03.9]} 35. Qg5# {[%clk 0:00:03.5]} 1-0

[Event "Early-Titled-Tuesday-Blitz-April-23-2024"]
[Site "Chess.com"]
[Date "2024.04.23"]
[Round "10"]
[White "PolandHussars"]
[Black "luckyswitchback"]
[Result "1-0"]
[WhiteElo "2601"]
[BlackElo "2702"]
[TimeControl "180+1"]
[EndTime "10:00:42 PDT"]
[Termination "PolandHussars won by resignation"]

1. e4 {[%clk 0:02:59.3]} 1... c6 {[%clk 0:03:00]} 2. Nc3 {[%clk 0:02:59]} 2...
d5 {[%clk 0:03:00.2]} 3. Nf3 {[%clk 0:02:59.6]} 3... dxe4 {[%clk 0:03:00.8]} 4.
Nxe4 {[%clk 0:03:00.2]} 4... Nf6 {[%clk 0:03:01.5]} 5. Ng3 {[%clk 0:02:58.3]}
5... h5 {[%clk 0:03:01.2]} 6. Bc4 {[%clk 0:02:56.7]} 6... h4 {[%clk 0:02:57.3]}
7. Nf1 {[%clk 0:02:43.9]} 7... Qc7 {[%clk 0:02:49.9]} 8. h3 {[%clk 0:02:40]}
8... Bf5 {[%clk 0:02:30.9]} 9. Ne3 {[%clk 0:02:39.9]} 9... Bg6 {[%clk
0:02:25.4]} 10. d4 {[%clk 0:02:40.1]} 10... Bh5 {[%clk 0:02:20.7]} 11. c3 {[%clk
0:02:34.7]} 11... e6 {[%clk 0:02:20.3]} 12. Be2 {[%clk 0:02:32.3]} 12... Nbd7
{[%clk 0:02:19.1]} 13. Nc4 {[%clk 0:02:21.6]} 13... O-O-O {[%clk 0:01:58.6]} 14.
Bg5 {[%clk 0:02:18.6]} 14... Be7 {[%clk 0:01:54.8]} 15. Qa4 {[%clk 0:02:15.8]}
15... Kb8 {[%clk 0:01:46.7]} 16. Nce5 {[%clk 0:02:07.4]} 16... Nxe5 {[%clk
0:01:43.1]} 17. Nxe5 {[%clk 0:02:07.6]} 17... Bxe2 {[%clk 0:01:43.6]} 18. Kxe2
{[%clk 0:02:08.5]} 18... Rhf8 {[%clk 0:01:38.6]} 19. Bxh4 {[%clk 0:02:03.2]}
19... Nd5 {[%clk 0:01:35.5]} 20. Bg3 {[%clk 0:01:56.4]} 20... Bd6 {[%clk
0:01:29.5]} 21. Raf1 {[%clk 0:01:25.1]} 21... f6 {[%clk 0:01:23.1]} 22. Ng6
{[%clk 0:01:24.6]} 22... Bxg3 {[%clk 0:00:56.5]} 23. Nxf8 {[%clk 0:01:25]} 23...
Bd6 {[%clk 0:00:56.5]} 24. Ng6 {[%clk 0:01:24.2]} 24... Qf7 {[%clk 0:00:56.8]}
25. Nh4 {[%clk 0:01:22.3]} 25... Qh5+ {[%clk 0:00:53.8]} 26. Nf3 {[%clk
0:01:22.3]} 26... Nf4+ {[%clk 0:00:54.3]} 27. Kd2 {[%clk 0:01:21.7]} 27... Nxg2
{[%clk 0:00:54]} 28. Ne1 {[%clk 0:01:17.6]} 28... Bf4+ {[%clk 0:00:49.2]} 29.
Kc2 {[%clk 0:01:18]} 29... Nxe1+ {[%clk 0:00:22.5]} 30. Rxe1 {[%clk 0:01:16.3]}
30... Qf5+ {[%clk 0:00:23.1]} 31. Kb3 {[%clk 0:01:14.9]} 31... Rd5 {[%clk
0:00:23.1]} 32. a3 {[%clk 0:01:06.4]} 32... Bd2 {[%clk 0:00:16.2]} 33. Ref1
{[%clk 0:01:04.7]} 33... Qd3 {[%clk 0:00:12.6]} 34. Ka2 {[%clk 0:01:03.5]} 34...
Bxc3 {[%clk 0:00:10.5]} 35. Qb3 {[%clk 0:01:00.3]} 35... Qxd4 {[%clk 0:00:03.2]}
36. Qxc3 {[%clk 0:00:59.2]} 36... Qe4 {[%clk 0:00:03.8]} 37. Rd1 {[%clk
0:00:57.7]} 37... a6 {[%clk 0:00:02]} 38. Rhe1 {[%clk 0:00:57.3]} 38... Qg2
{[%clk 0:00:01.4]} 39. Rxd5 {[%clk 0:00:56.2]} 39... Qxd5+ {[%clk 0:00:02.3]}
40. Qb3 {[%clk 0:00:55]} 40... e5 {[%clk 0:00:01]} 41. Qxd5 {[%clk 0:00:54.2]}
41... cxd5 {[%clk 0:00:01.9]} 42. h4 {[%clk 0:00:53.6]} 42... g6 {[%clk
0:00:01.9]} 43. Rg1 {[%clk 0:00:53.6]} 43... d4 {[%clk 0:00:02.5]} 44. Rxg6
{[%clk 0:00:53]} 44... d3 {[%clk 0:00:03.4]} 45. Kb3 {[%clk 0:00:53]} 45... a5
{[%clk 0:00:03.1]} 46. Rxf6 {[%clk 0:00:53.3]} 46... a4+ {[%clk 0:00:04]} 47.
Kc3 {[%clk 0:00:53.8]} 47... d2 {[%clk 0:00:04.9]} 48. Kxd2 {[%clk 0:00:54.3]}
48... b6 {[%clk 0:00:05.1]} 49. Ke3 {[%clk 0:00:55.2]} 49... e4 {[%clk 0:00:06]}
50. h5 {[%clk 0:00:53.9]} 50... Kb7 {[%clk 0:00:05.6]} 51. h6 {[%clk 0:00:54.4]}
51... Ka6 {[%clk 0:00:06.5]} 52. h7 {[%clk 0:00:54.9]} 52... Kb7 {[%clk
0:00:07.4]} 53. h8=Q {[%clk 0:00:54.8]} 53... Ka6 {[%clk 0:00:08.3]} 54. Qa8+
{[%clk 0:00:54.9]} 54... Kb5 {[%clk 0:00:08.4]} 55. Rf5+ {[%clk 0:00:54.2]}
55... Kc4 {[%clk 0:00:08.8]} 1-0

[Event "Early-Titled-Tuesday-Blitz-April-23-2024"]
[Site "Chess.com"]
[Date "2024.04.23"]
[Round "10"]
[White "LuisFSiles"]
[Black "klifus"]
[Result "0-1"]
[WhiteElo "2437"]
[BlackElo "2196"]
[TimeControl "180+1"]
[EndTime "10:00:42 PDT"]
[Termination "klifus won by resignation"]

1. e4 {[%clk 0:03:00.9]} 1... c5 {[%clk 0:02:58.9]} 2. Nf3 {[%clk 0:02:59.7]}
2... d6 {[%clk 0:02:58.4]} 3. Bb5+ {[%clk 0:02:59.1]} 3... Bd7 {[%clk
0:02:57.6]} 4. Bxd7+ {[%clk 0:02:58.8]} 4... Nxd7 {[%clk 0:02:56.6]} 5. O-O
{[%clk 0:02:58.8]} 5... Ngf6 {[%clk 0:02:54.4]} 6. Re1 {[%clk 0:02:58.9]} 6...
e6 {[%clk 0:02:48.9]} 7. c3 {[%clk 0:02:58.7]} 7... Be7 {[%clk 0:02:40.7]} 8. d4
{[%clk 0:02:57.4]} 8... cxd4 {[%clk 0:02:37.8]} 9. cxd4 {[%clk 0:02:57.4]} 9...
O-O {[%clk 0:02:37.5]} 10. Nc3 {[%clk 0:02:57.6]} 10... Rc8 {[%clk 0:02:31.3]}
11. Bg5 {[%clk 0:02:28.2]} 11... h6 {[%clk 0:02:27.1]} 12. Bh4 {[%clk
0:02:27.7]} 12... a6 {[%clk 0:02:23.2]} 13. a4 {[%clk 0:02:23.6]} 13... Ne8
{[%clk 0:02:11.8]} 14. Bg3 {[%clk 0:02:17.9]} 14... Qb6 {[%clk 0:02:09.3]} 15.
Qd2 {[%clk 0:02:11.8]} 15... Rc4 {[%clk 0:01:53.6]} 16. a5 {[%clk 0:02:07.6]}
16... Qc7 {[%clk 0:01:52.8]} 17. Rec1 {[%clk 0:01:30.8]} 17... Nef6 {[%clk
0:01:43.8]} 18. b3 {[%clk 0:01:25.5]} 18... Rc6 {[%clk 0:01:39.8]} 19. d5 {[%clk
0:01:24.2]} 19... exd5 {[%clk 0:01:37.2]} 20. exd5 {[%clk 0:01:17.4]} 20... Rc5
{[%clk 0:01:35.9]} 21. Na4 {[%clk 0:00:57.8]} 21... Rxc1+ {[%clk 0:01:31.8]} 22.
Rxc1 {[%clk 0:00:58.7]} 22... Qb8 {[%clk 0:01:25.5]} 23. Nb6 {[%clk 0:00:48.8]}
23... Nxb6 {[%clk 0:01:22.3]} 24. axb6 {[%clk 0:00:49.7]} 24... Rc8 {[%clk
0:01:14.4]} 25. Rc4 {[%clk 0:00:49.7]} 25... Rxc4 {[%clk 0:01:09.4]} 26. bxc4
{[%clk 0:00:49.6]} 26... Qc8 {[%clk 0:01:07.8]} 27. Qb4 {[%clk 0:00:49.3]} 27...
Ne4 {[%clk 0:01:02.1]} 28. Nd4 {[%clk 0:00:42.8]} 28... g6 {[%clk 0:00:47.4]}
29. f3 {[%clk 0:00:32.2]} 29... Qc5 {[%clk 0:00:45]} 30. Qxc5 {[%clk 0:00:28.9]}
30... Nxc5 {[%clk 0:00:44.7]} 31. Nc2 {[%clk 0:00:21.3]} 31... Nd7 {[%clk
0:00:43.5]} 32. Bf2 {[%clk 0:00:19.5]} 32... Bd8 {[%clk 0:00:42.2]} 33. Nb4
{[%clk 0:00:17.1]} 33... Bxb6 {[%clk 0:00:41.3]} 34. Nd3 {[%clk 0:00:14.6]}
34... Bxf2+ {[%clk 0:00:39.9]} 35. Kxf2 {[%clk 0:00:15.5]} 35... Kf8 {[%clk
0:00:37.8]} 36. Ke3 {[%clk 0:00:15]} 36... Ke7 {[%clk 0:00:37.1]} 37. Kd4 {[%clk
0:00:15.4]} 37... b6 {[%clk 0:00:30.3]} 38. f4 {[%clk 0:00:14.3]} 38... a5
{[%clk 0:00:30]} 39. g4 {[%clk 0:00:13.4]} 39... f5 {[%clk 0:00:29]} 40. h3
{[%clk 0:00:13]} 40... Kf6 {[%clk 0:00:27.8]} 41. Nf2 {[%clk 0:00:10.1]} 41...
Nc5 {[%clk 0:00:26.5]} 42. Kc3 {[%clk 0:00:09.5]} 42... Ne4+ {[%clk 0:00:24.2]}
43. Nxe4+ {[%clk 0:00:09.3]} 43... fxe4 {[%clk 0:00:24.3]} 44. Kd4 {[%clk
0:00:07.6]} 44... a4 {[%clk 0:00:24.3]} 45. Kxe4 {[%clk 0:00:07.3]} 45... a3
{[%clk 0:00:24.4]} 0-1

[Event "Early-Titled-Tuesday-Blitz-April-23-2024"]
[Site "Chess.com"]
[Date "2024.04.23"]
[Round "10"]
[White "vladgoncharov"]
[Black "joshdaruca"]
[Result "1/2-1/2"]
[WhiteElo "2601"]
[BlackElo "2747"]
[TimeControl "180+1"]
[EndTime "10:00:43 PDT"]
[Termination "Game drawn by stalemate"]

1. d4 {[%clk 0:03:00.9]} 1... Nf6 {[%clk 0:02:53.4]} 2. c4 {[%clk 0:03:00.2]}
2... e6 {[%clk 0:02:54.3]} 3. Nc3 {[%clk 0:02:59.6]} 3... d5 {[%clk 0:02:54.9]}
4. cxd5 {[%clk 0:02:58.6]} 4... Nxd5 {[%clk 0:02:55.8]} 5. e4 {[%clk 0:02:58]}
5... Nxc3 {[%clk 0:02:56.2]} 6. bxc3 {[%clk 0:02:58.9]} 6... c5 {[%clk
0:02:56.5]} 7. Bb5+ {[%clk 0:02:49.1]} 7... Nd7 {[%clk 0:02:53.3]} 8. Rb1 {[%clk
0:02:44.8]} 8... Qc7 {[%clk 0:02:49.5]} 9. Nf3 {[%clk 0:02:41.6]} 9... Be7
{[%clk 0:02:47.6]} 10. O-O {[%clk 0:02:35.7]} 10... O-O {[%clk 0:02:48.1]} 11.
Bg5 {[%clk 0:02:31.5]} 11... Bxg5 {[%clk 0:02:44.1]} 12. Nxg5 {[%clk 0:02:31]}
12... h6 {[%clk 0:02:44.8]} 13. Nf3 {[%clk 0:02:29.1]} 13... Rd8 {[%clk
0:02:40.1]} 14. Qe2 {[%clk 0:02:23.8]} 14... b6 {[%clk 0:02:39.2]} 15. Bxd7
{[%clk 0:02:11.2]} 15... Bxd7 {[%clk 0:02:36.4]} 16. Ne5 {[%clk 0:02:09.8]}
16... Ba4 {[%clk 0:02:36.9]} 17. Qe3 {[%clk 0:02:05.5]} 17... Rac8 {[%clk
0:02:32.9]} 18. Rbc1 {[%clk 0:01:49.2]} 18... Qd6 {[%clk 0:02:29]} 19. Nf3
{[%clk 0:01:25.7]} 19... Rc7 {[%clk 0:02:21.8]} 20. h4 {[%clk 0:01:17.5]} 20...
Rdc8 {[%clk 0:02:21.1]} 21. g4 {[%clk 0:00:59]} 21... cxd4 {[%clk 0:02:12.9]}
22. cxd4 {[%clk 0:00:58.8]} 22... Rc2 {[%clk 0:02:13.4]} 23. Rxc2 {[%clk
0:00:55.6]} 23... Rxc2 {[%clk 0:02:14.3]} 24. Rc1 {[%clk 0:00:53.8]} 24... Qc7
{[%clk 0:02:11]} 25. Rxc2 {[%clk 0:00:50.9]} 25... Qxc2 {[%clk 0:02:11.9]} 26.
g5 {[%clk 0:00:49.1]} 26... hxg5 {[%clk 0:02:10.9]} 27. Nxg5 {[%clk 0:00:44.5]}
27... Qc7 {[%clk 0:01:54.8]} 28. h5 {[%clk 0:00:39.1]} 28... Bd1 {[%clk
0:01:54.8]} 29. h6 {[%clk 0:00:28.3]} 29... gxh6 {[%clk 0:01:53]} 30. Nh3 {[%clk
0:00:26.3]} 30... Kg7 {[%clk 0:01:51.1]} 31. Nf4 {[%clk 0:00:25.3]} 31... Qe7
{[%clk 0:01:46.2]} 32. Kh2 {[%clk 0:00:14.9]} 32... Qg5 {[%clk 0:01:43.7]} 33.
e5 {[%clk 0:00:12.7]} 33... Ba4 {[%clk 0:01:35.5]} 34. d5 {[%clk 0:00:12.2]}
34... exd5 {[%clk 0:01:25.4]} 35. e6 {[%clk 0:00:12.2]} 35... Kf8 {[%clk
0:01:23.5]} 36. exf7 {[%clk 0:00:11.5]} 36... Bd7 {[%clk 0:01:18.6]} 37. Qd4
{[%clk 0:00:11.5]} 37... Kxf7 {[%clk 0:01:16.7]} 38. Nxd5 {[%clk 0:00:10.9]}
38... Bc6 {[%clk 0:01:14.9]} 39. Nf4 {[%clk 0:00:10]} 39... Qc5 {[%clk
0:01:13.8]} 40. Qd3 {[%clk 0:00:07.2]} 40... Qxf2+ {[%clk 0:01:13.5]} 41. Kh3
{[%clk 0:00:07]} 41... Qc5 {[%clk 0:01:12.3]} 42. Qh7+ {[%clk 0:00:06.5]} 42...
Ke8 {[%clk 0:01:12.9]} 43. Qxh6 {[%clk 0:00:06.4]} 43... Bd7+ {[%clk 0:01:11.5]}
44. Kg3 {[%clk 0:00:05.8]} 44... Qa3+ {[%clk 0:01:11.8]} 45. Kh4 {[%clk
0:00:04.9]} 45... Qxa2 {[%clk 0:01:11.4]} 46. Qd6 {[%clk 0:00:04.6]} 46... Qh2+
{[%clk 0:01:07.4]} 47. Kg5 {[%clk 0:00:04.1]} 47... Qg3+ {[%clk 0:01:07.5]} 48.
Kf6 {[%clk 0:00:03.9]} 48... Qc3+ {[%clk 0:01:08.1]} 49. Kg5 {[%clk 0:00:02.6]}
49... Qc5+ {[%clk 0:01:08.6]} 50. Qxc5 {[%clk 0:00:02.9]} 50... bxc5 {[%clk
0:01:09.5]} 51. Kf6 {[%clk 0:00:03.4]} 51... Kd8 {[%clk 0:01:09.4]} 52. Ke5
{[%clk 0:00:03.6]} 52... Kc7 {[%clk 0:01:10.1]} 53. Kd5 {[%clk 0:00:03.8]} 53...
Kb6 {[%clk 0:01:10]} 54. Kc4 {[%clk 0:00:04.2]} 54... a5 {[%clk 0:01:08.6]} 55.
Kc3 {[%clk 0:00:04.6]} 55... Kb5 {[%clk 0:01:08.3]} 56. Nd3 {[%clk 0:00:04.8]}
56... Be6 {[%clk 0:01:06.3]} 57. Nxc5 {[%clk 0:00:04.7]} 57... Kxc5 {[%clk
0:01:06.3]} 58. Kb2 {[%clk 0:00:05.4]} 58... Kb4 {[%clk 0:01:06.7]} 59. Ka1
{[%clk 0:00:06.2]} 59... Ka3 {[%clk 0:01:07.3]} 60. Kb1 {[%clk 0:00:06.8]} 60...
Bd7 {[%clk 0:01:07.9]} 61. Ka1 {[%clk 0:00:07.5]} 61... Bc6 {[%clk 0:01:08.8]}
62. Kb1 {[%clk 0:00:08.2]} 62... a4 {[%clk 0:01:09.7]} 63. Ka1 {[%clk
0:00:08.9]} 63... Kb3 {[%clk 0:01:10.6]} 64. Kb1 {[%clk 0:00:09.7]} 64... a3
{[%clk 0:01:11.5]} 65. Ka1 {[%clk 0:00:10.4]} 65... a2 {[%clk 0:01:12.4]}
1/2-1/2

[Event "Early-Titled-Tuesday-Blitz-April-23-2024"]
[Site "Chess.com"]
[Date "2024.04.23"]
[Round "10"]
[White "jeetjain"]
[Black "alexrustemov"]
[Result "1-0"]
[WhiteElo "2627"]
[BlackElo "2836"]
[TimeControl "180+1"]
[EndTime "10:00:43 PDT"]
[Termination "jeetjain won by checkmate"]

1. c4 {[%clk 0:02:59.7]} 1... c5 {[%clk 0:02:59.6]} 2. Nc3 {[%clk 0:02:58.6]}
2... g6 {[%clk 0:02:59]} 3. Nf3 {[%clk 0:02:58.6]} 3... Bg7 {[%clk 0:02:59.2]}
4. d4 {[%clk 0:02:59.2]} 4... cxd4 {[%clk 0:02:59.1]} 5. Nxd4 {[%clk 0:03:00.1]}
5... Nc6 {[%clk 0:02:59.6]} 6. Nxc6 {[%clk 0:03:00.1]} 6... bxc6 {[%clk
0:02:58.1]} 7. e4 {[%clk 0:02:57.1]} 7... d6 {[%clk 0:02:56.8]} 8. Be2 {[%clk
0:02:56.8]} 8... Nf6 {[%clk 0:02:55.6]} 9. O-O {[%clk 0:02:56.9]} 9... O-O
{[%clk 0:02:55.1]} 10. Rb1 {[%clk 0:02:54.2]} 10... c5 {[%clk 0:02:49.4]} 11. b3
{[%clk 0:02:50.7]} 11... Nd7 {[%clk 0:02:47]} 12. Bb2 {[%clk 0:02:46.5]} 12...
Ne5 {[%clk 0:02:45.5]} 13. f4 {[%clk 0:02:45]} 13... Nc6 {[%clk 0:02:44.1]} 14.
Bd3 {[%clk 0:02:36.1]} 14... Nd4 {[%clk 0:02:37]} 15. Ne2 {[%clk 0:02:35.2]}
15... Bg4 {[%clk 0:02:32.2]} 16. h3 {[%clk 0:02:30.3]} 16... Bxe2 {[%clk
0:02:31.6]} 17. Bxe2 {[%clk 0:02:31.2]} 17... a5 {[%clk 0:02:30.3]} 18. Bxd4
{[%clk 0:02:27.1]} 18... Bxd4+ {[%clk 0:02:29.1]} 19. Kh1 {[%clk 0:02:27.6]}
19... e5 {[%clk 0:02:17]} 20. f5 {[%clk 0:02:25.9]} 20... Qg5 {[%clk 0:02:12.7]}
21. Rf3 {[%clk 0:02:19.9]} 21... a4 {[%clk 0:02:08.8]} 22. bxa4 {[%clk
0:02:17.9]} 22... Ra7 {[%clk 0:02:02.6]} 23. Bd3 {[%clk 0:02:16.6]} 23... Rfa8
{[%clk 0:02:01.3]} 24. Bc2 {[%clk 0:02:16.6]} 24... h5 {[%clk 0:01:48.6]} 25.
Qe2 {[%clk 0:02:09.7]} 25... Kg7 {[%clk 0:01:47.9]} 26. Rbf1 {[%clk 0:02:05.2]}
26... Rb8 {[%clk 0:01:44.2]} 27. Bb3 {[%clk 0:02:04.4]} 27... h4 {[%clk
0:01:33.9]} 28. Qe1 {[%clk 0:02:01.3]} 28... Rh8 {[%clk 0:01:26.4]} 29. Qc1
{[%clk 0:02:00.5]} 29... Qxc1 {[%clk 0:01:23.9]} 30. Rxc1 {[%clk 0:02:01.4]}
30... Rb8 {[%clk 0:01:19.5]} 31. Rcf1 {[%clk 0:01:55.2]} 31... Rb4 {[%clk
0:01:17]} 32. fxg6 {[%clk 0:01:54.1]} 32... fxg6 {[%clk 0:01:15]} 33. Rf8 {[%clk
0:01:53.2]} 33... Rbxa4 {[%clk 0:01:09.6]} 34. Bxa4 {[%clk 0:01:51]} 34... Rxa4
{[%clk 0:01:10.5]} 35. g3 {[%clk 0:01:38.4]} 35... hxg3 {[%clk 0:01:07.3]} 36.
R1f7+ {[%clk 0:01:36.6]} 36... Kh6 {[%clk 0:01:06.9]} 37. Kg2 {[%clk 0:01:36.2]}
37... Kg5 {[%clk 0:01:01.1]} 38. Kxg3 {[%clk 0:01:28.1]} 38... Ra3+ {[%clk
0:01:01.1]} 39. Rf3 {[%clk 0:01:27.8]} 39... Rxa2 {[%clk 0:00:59.1]} 40. Rh8
{[%clk 0:01:21.8]} 40... Rg2+ {[%clk 0:00:08.2]} 41. Kxg2 {[%clk 0:01:21.3]}
41... Bf2 {[%clk 0:00:08.1]} 42. Kxf2 {[%clk 0:01:17]} 42... d5 {[%clk
0:00:08.6]} 43. h4+ {[%clk 0:01:17.2]} 43... Kg4 {[%clk 0:00:07.8]} 44. cxd5
{[%clk 0:01:16.8]} 44... c4 {[%clk 0:00:07.9]} 45. d6 {[%clk 0:01:16.7]} 45...
c3 {[%clk 0:00:07.8]} 46. Rxc3 {[%clk 0:01:16.8]} 46... Kf4 {[%clk 0:00:07.3]}
47. d7 {[%clk 0:01:16.3]} 47... Kxe4 {[%clk 0:00:07.3]} 48. d8=Q {[%clk
0:01:16.3]} 48... Kf4 {[%clk 0:00:07.3]} 49. Qg5+ {[%clk 0:01:16.4]} 49... Ke4
{[%clk 0:00:07.3]} 50. Re3+ {[%clk 0:01:16.3]} 50... Kd4 {[%clk 0:00:07]} 51.
Qxe5+ {[%clk 0:01:16.4]} 51... Kc4 {[%clk 0:00:05.8]} 52. Qe4+ {[%clk
0:01:16.8]} 52... Kc5 {[%clk 0:00:04.9]} 53. Qxg6 {[%clk 0:01:17.7]} 53... Kd4
{[%clk 0:00:04.2]} 54. h5 {[%clk 0:01:18.6]} 54... Kc5 {[%clk 0:00:03.7]} 55. h6
{[%clk 0:01:19.5]} 55... Kd4 {[%clk 0:00:03.6]} 56. h7 {[%clk 0:01:20.4]} 56...
Kc5 {[%clk 0:00:03.5]} 57. Rf8 {[%clk 0:01:20.6]} 57... Kd4 {[%clk 0:00:03.2]}
58. h8=Q+ {[%clk 0:01:20.5]} 58... Kc4 {[%clk 0:00:03.3]} 59. Rf4+ {[%clk
0:01:19.3]} 59... Kb5 {[%clk 0:00:02.9]} 60. Qg5+ {[%clk 0:01:19.6]} 60... Kb6
{[%clk 0:00:02.7]} 61. Qhh6+ {[%clk 0:01:19.6]} 61... Kb7 {[%clk 0:00:02.5]} 62.
Rf7+ {[%clk 0:01:18.6]} 62... Ka8 {[%clk 0:00:02.5]} 63. Re8# {[%clk 0:01:16.6]}
1-0